bitfinex-derivatives/quotes_ETHF0:USTF0_20260113
["timestamp","ask_amount","ask_price","bid_price","bid_amount"]
[1768318443439,0.13915224,3155.2,3154.2,0.15865]
[1768318443639,0.1365586,3155.7,3153.7,1.78049249]
[1768318443942,0.8726649,3155.6,3154.7,0.15863]
[1768318444241,0.5317949,3155.6,3154.7,3.173]
[1768318444542,4.9e-06,3155.6,3154.7,3.173]
[1768318444842,4.9e-06,3155.6,3154.8,6.0]
[1768318445034,0.0029355,3155.6,3154.8,6.0]
[1768318445233,0.1365586,3156.8,3154.8,6.0]
[1768318445536,0.15843,3158.8,3156.2,0.15856]
[1768318445736,1.78049249,3158.5,3156.2,0.15856]
[1768318446242,0.00233455,3158.5,3156.2,0.00278258]
[1768318446435,0.00233455,3158.5,3156.2,0.13111683]
[1768318446832,0.00233455,3158.5,3156.4,0.12833236]
[1768318447142,0.00233455,3158.5,3156.5,4.296]
[1768318447438,0.14387411,3158.5,3156.2,1.27378258]
[1768318447634,0.14387411,3158.5,3156.2,0.16133258]
[1768318447938,0.14153956,3158.2,3156.2,0.16133258]
[1768318448738,0.14153956,3157.8,3156.2,0.00278258]
[1768318449145,0.14153956,3157.8,3156.2,0.16133258]
[1768318449344,0.14153956,3157.8,3156.2,0.00278258]
[1768318449733,0.14153956,3157.8,3156.2,1.21378258]
[1768318449939,0.14153956,3157.8,3156.2,0.00278258]
[1768318450140,0.14153956,3157.8,3156.2,0.16134258]
[1768318451438,0.14153956,3157.8,3156.2,0.00278258]
[1768318451748,0.14153956,3158.4,3157.0,0.15851]
[1768318453846,0.14153956,3158.4,3157.1,0.15851]
[1768318454650,0.14153956,3158.4,3156.3,0.15855]
[1768318456142,0.14153956,3158.4,3156.6,0.15854]
[1768318456747,0.14153956,3158.4,3156.2,0.00278258]
[1768318456748,0.14492873,3158.0,3156.2,0.00278258]
[1768318456945,0.30339873,3158.0,3156.2,0.00278258]
[1768318457146,6.14492873,3157.9,3156.2,0.00278258]
[1768318457348,0.14492873,3157.8,3156.2,0.00278258]
[1768318457550,0.14492873,3157.8,3155.0,0.346]
[1768318457551,1.78049249,3156.9,3155.3,0.1586]
[1768318457749,0.14492873,3156.8,3155.3,0.1586]
[1768318457957,0.14492873,3157.4,3154.9,0.13742637]
[1768318458148,0.14492873,3157.9,3156.1,0.15856]
[1768318458853,0.14492873,3157.9,3156.1,0.16186019]
[1768318460347,0.14492873,3157.9,3156.3,0.15855]
[1768318460651,0.14492873,3157.9,3156.7,0.15853]
[1768318460851,0.14492873,3157.9,3156.8,0.15853]
[1768318461052,0.14492873,3158.4,3156.8,0.15853]
[1768318461751,0.14492873,3158.4,3156.3,3.31163519]
[1768318461945,0.00233455,3158.5,3157.0,0.15851]
[1768318462149,0.14726328,3158.5,3157.0,0.15851]
[1768318463244,0.14726328,3158.5,3157.2,0.1585]
[1768318464659,0.14492873,3158.3,3156.3,3.17]
[1768318465657,0.14492873,3158.3,3156.7,0.15853]
[1768318467953,0.14492873,3158.2,3156.7,0.15853]
[1768318468147,0.14492873,3158.2,3156.1,0.16186019]
[1768318468352,0.14492873,3158.1,3156.1,0.16186019]
[1768318468554,0.14492873,3157.7,3156.1,0.16186019]
[1768318469054,1.78049249,3158.3,3156.5,0.15854]
[1768318469262,0.14492873,3158.3,3156.5,0.15854]
[1768318470062,0.14492873,3158.1,3156.5,0.15854]
[1768318470461,0.14492873,3158.1,3156.6,0.15854]
[1768318471160,0.14492873,3158.1,3156.7,0.15853]
[1768318472259,0.14492873,3158.1,3156.2,0.15855]
[1768318472454,0.14492873,3158.1,3156.6,0.15853]
[1768318473464,0.14492873,3158.0,3156.6,0.15853]
[1768318474267,1.5672079,3157.7,3156.6,0.15853]
[1768318474462,1.71213663,3157.3,3156.1,0.00330019]
[1768318474664,0.14492873,3157.2,3156.1,0.00330019]
[1768318475261,0.14209887,3157.8,3156.1,0.00330019]
[1768318475461,1.5672079,3158.0,3156.1,0.00330019]
[1768318475962,0.14209887,3157.5,3156.1,0.00330019]
[1768318476165,1.5672079,3157.4,3156.1,0.00330019]
[1768318476364,0.15846,3158.2,3156.3,0.15855]
[1768318476365,1.5672079,3157.8,3156.3,0.15855]
[1768318476767,1.70930677,3157.8,3156.3,0.15855]
[1768318477069,0.14209887,3157.3,3156.1,0.00330019]
[1768318477264,0.14209887,3157.0,3156.1,0.00330019]
[1768318477562,0.14209887,3157.0,3155.5,0.15859]
[1768318477765,1.5672079,3157.1,3155.7,0.15858]
[1768318478265,1.70930677,3157.1,3155.7,0.15858]
[1768318478566,1.70930677,3157.1,3155.7,0.16213934]
[1768318479569,0.14209887,3157.0,3155.7,0.16213934]
[1768318480868,0.14209887,3157.0,3154.5,0.14049509]
[1768318480869,0.14209887,3156.6,3155.1,0.15861]
[1768318481069,1.70930677,3156.3,3155.1,0.15861]
[1768318481262,3.181,3157.7,3155.2,0.15861]
[1768318481263,1.70930677,3156.9,3155.2,0.15861]
[1768318481463,0.14209887,3156.7,3155.2,0.15861]
[1768318481864,0.14209887,3156.4,3155.2,0.15861]
[1768318482064,0.14209887,3156.4,3155.2,0.16269847]
[1768318485268,0.14209887,3156.1,3154.6,0.15863]
[1768318486265,0.1456341,3156.1,3154.6,0.00234483]
[1768318486577,0.00353523,3156.1,3155.1,0.15861]
[1768318486766,0.1456341,3156.1,3155.1,0.15861]
[1768318486963,0.1456341,3156.1,3154.6,0.00234483]
[1768318487874,0.1456341,3156.1,3154.8,0.15863]
[1768318488070,0.1456341,3156.1,3154.9,0.15862]
[1768318488572,0.14209887,3155.9,3154.6,0.00234483]
[1768318489276,0.00353523,3156.1,3154.6,0.00234483]
[1768318489766,0.00353523,3156.1,3154.8,1.5672079]
[1768318490073,0.00353523,3156.1,3155.3,0.1586]
[1768318490971,0.14209887,3157.1,3155.3,6.0]
[1768318491170,0.14209887,3156.4,3155.0,0.15861]
[1768318491975,0.14548453,3156.4,3155.0,0.15861]
[1768318492578,0.00338566,3156.4,3155.3,0.1586]
[1768318492976,0.00338566,3156.4,3155.4,0.15859]
[1768318493770,0.14548453,3156.4,3154.7,0.15863]
[1768318494580,0.14548453,3156.4,3154.8,0.15863]
[1768318494981,0.14209887,3156.1,3154.8,0.15863]
[1768318495178,0.14209887,3156.1,3154.6,0.00234483]
[1768318495384,0.14209887,3155.7,3154.6,0.00234483]
[1768318497185,1.5672079,3155.8,3153.9,0.15867]
[1768318497186,0.14209887,3155.6,3153.9,0.15867]
[1768318497678,0.14209887,3155.6,3153.7,3.171]
[1768318498187,0.14209887,3155.6,3154.1,0.15866]
[1768318499075,0.14209887,3156.2,3154.4,0.15864]
[1768318499275,0.14209887,3156.2,3154.5,0.15864]
[1768318499975,0.14209887,3156.1,3154.5,0.15864]
[1768318500382,0.14209887,3155.7,3153.7,0.00304275]
[1768318500788,0.14209887,3155.7,3154.1,0.15866]
[1768318501473,0.14209887,3155.7,3153.7,1.57025065]
[1768318501678,0.14209887,3156.3,3154.1,1.5672079]
[1768318502182,0.14209887,3156.2,3154.1,1.5672079]
[1768318502381,0.14209887,3156.2,3154.7,0.15863]
[1768318502578,0.14209887,3156.2,3155.0,0.15861]
[1768318502777,0.00338566,3156.4,3155.1,0.15861]
[1768318505390,0.14512318,3156.1,3155.1,0.15861]
[1768318505990,0.14512318,3156.1,3154.5,0.15864]
[1768318508884,0.14512318,3155.7,3153.9,3.32967]
[1768318509091,0.14512318,3155.3,3153.9,3.32967]
[1768318510184,42.235,3156.2,3153.9,3.32967]
[1768318510185,0.14512318,3156.1,3153.9,3.171]
[1768318510382,0.14512318,3156.1,3154.3,1.5672079]
[1768318510992,0.14512318,3156.1,3154.7,0.15863]
[1768318511291,0.14512318,3156.1,3154.9,0.15862]
[1768318511994,0.00338566,3156.4,3155.1,0.15861]
[1768318512190,0.00338566,3156.4,3155.4,0.15859]
[1768318512395,0.00338566,3156.4,3155.6,0.15859]
[1768318512593,0.14512318,3157.1,3155.6,0.15859]
[1768318512999,0.14512318,3157.0,3155.6,0.15859]
[1768318513595,0.1492133,3157.0,3155.6,0.15859]
[1768318514796,0.14512318,3156.6,3154.9,4.14530399]
[1768318514992,0.14512318,3156.6,3154.9,0.15862]
[1768318518085,0.14512318,3156.6,3154.2,1.269]
[1768318518086,0.1390039,3156.2,3154.2,5.25568399]
[1768318518398,0.1390039,3156.2,3153.7,0.12812764]
[1768318518399,1.7062118,3155.3,3153.7,0.00304275]
[1768318518697,0.1390039,3155.2,3153.7,0.00304275]
[1768318520788,0.1390039,3155.2,3153.8,0.15868]
[1768318522594,0.1390039,3154.4,3152.9,3.98668399]
[1768318522797,0.1390039,3154.9,3153.4,0.1587]
[1768318523004,0.1390039,3156.0,3153.9,0.15867]
[1768318523200,1.08599142,3155.9,3154.3,0.15865]
[1768318523394,0.1390039,3155.9,3154.1,2.7822079]
[1768318523700,0.14182851,3155.9,3154.1,2.78462712]
[1768318523897,0.00282461,3155.9,3154.5,1.5672079]
[1768318524296,0.00282461,3155.9,3155.0,0.15861]
[1768318524500,0.1390039,3156.5,3155.1,0.15861]
[1768318525498,0.1390039,3156.5,3154.1,0.00241922]
[1768318525499,0.1390039,3155.8,3154.1,0.00241922]
[1768318525702,0.1390039,3155.4,3154.1,0.00241922]
[1768318526204,0.1390039,3155.9,3154.2,0.15866]
[1768318526596,0.1390039,3155.8,3154.2,0.15866]
[1768318527606,0.1390039,3155.4,3154.1,0.00241922]
[1768318527900,0.1390039,3155.4,3154.2,0.15866]
[1768318528102,0.1390039,3156.0,3154.2,0.15866]
[1768318528806,0.1390039,3155.7,3154.2,0.15866]
[1768318529007,0.1390039,3155.7,3154.3,0.15865]
[1768318531004,0.1390039,3155.7,3154.4,0.15865]
[1768318532599,0.1390039,3156.2,3154.5,0.15864]
[1768318533504,0.1390039,3156.2,3154.7,0.15863]
[1768318534414,0.1390039,3156.2,3154.9,0.15862]
[1768318534712,0.00297573,3156.5,3155.0,0.15862]
[1768318534899,0.13839999,3156.5,3155.0,0.15862]
[1768318535715,0.13542426,3156.1,3154.3,4.14533399]
[1768318536108,0.13542426,3156.1,3154.4,0.15865]
[1768318539917,0.13542426,3155.9,3154.1,0.00241922]
[1768318540116,0.29399426,3155.9,3154.1,0.00241922]
[1768318540420,0.13542426,3155.7,3154.1,0.00241922]
[1768318541215,0.13542426,3155.7,3154.1,0.16107922]
[1768318541818,0.13542426,3155.7,3154.1,0.00241922]
[1768318542014,0.13542426,3155.7,3154.5,0.15864]
[1768318542828,0.13542426,3155.7,3154.6,0.15863]
[1768318543523,0.13542426,3155.7,3154.7,0.15863]
[1768318543714,0.13542426,3156.4,3154.1,0.13115571]
[1768318543916,0.13542426,3156.4,3154.3,0.12873589]
[1768318544124,0.13542426,3156.4,3155.0,0.15862]
[1768318544430,0.00297573,3156.5,3154.5,0.12873589]
[1768318545024,0.00297573,3156.5,3155.3,0.1586]
[1768318545920,0.13839999,3156.5,3155.3,0.1586]
[1768318546125,0.13839999,3156.5,3154.4,3.98668399]
[1768318546529,0.13839999,3156.5,3154.7,0.15863]
[1768318547126,0.13542426,3156.3,3154.4,0.15864]
[1768318547324,0.13542426,3156.3,3154.7,0.15863]
[1768318548532,0.13542426,3156.3,3155.1,0.15861]
[1768318550527,0.13542426,3156.3,3154.4,0.15864]
[1768318550728,0.13542426,3156.3,3154.5,0.15864]
[1768318551128,0.13542426,3156.3,3154.8,0.15862]
[1768318552319,0.13542426,3156.3,3155.0,0.15862]
[1768318552522,0.13542426,3156.3,3155.1,0.15861]
[1768318552723,0.00297573,3156.5,3155.1,0.15861]
[1768318553428,0.00297573,3156.5,3155.3,0.1586]
[1768318553826,0.13839999,3156.5,3155.3,0.1586]
[1768318554125,0.13839999,3156.5,3154.8,0.15863]
[1768318554324,0.13839999,3156.5,3154.1,3.30194572]
[1768318554325,0.13839999,3156.5,3154.9,0.15862]
[1768318554527,0.13839999,3156.5,3155.1,0.15861]
[1768318554724,0.13839999,3156.5,3155.2,0.1586]
[1768318558634,0.13839999,3156.5,3155.3,0.1586]
[1768318558934,0.13839999,3156.5,3154.5,0.1275265]
[1768318558935,0.00297573,3156.5,3154.6,0.1261949]
[1768318559236,0.00297573,3156.5,3155.7,0.15858]
[1768318559431,0.00297573,3156.5,3155.8,0.15858]
[1768318560335,51.185,3157.5,3156.2,0.15856]
[1768318560336,0.13542426,3157.5,3156.2,0.15856]
[1768318560537,0.13542426,3157.5,3156.3,0.15855]
[1768318561131,0.13542426,3158.2,3156.4,0.15854]
[1768318561432,0.13931265,3158.2,3156.9,0.15852]
[1768318561643,0.13931265,3158.2,3157.0,0.15851]
[1768318562136,0.00388839,3158.2,3156.5,0.12330449]
[1768318562331,0.00388839,3158.2,3156.6,3.171]
[1768318562530,0.00388839,3158.2,3157.1,0.15851]
[1768318563633,0.13931265,3158.2,3156.4,0.16217052]
[1768318563832,0.13931265,3158.2,3156.5,0.15854]
[1768318564135,0.00388839,3158.2,3156.8,0.15852]
[1768318565438,0.14270236,3158.2,3156.4,0.00363052]
[1768318565830,1.77801592,3158.0,3156.4,0.00363052]
[1768318566141,0.13881397,3157.9,3156.4,0.00363052]
[1768318568039,0.00388839,3158.2,3156.6,0.15853]
[1768318568336,0.00388839,3158.2,3156.4,0.00363052]
[1768318568733,0.00388839,3158.2,3157.0,0.15851]
[1768318569839,0.13868285,3158.2,3157.0,0.15851]
[1768318574050,0.13868285,3158.2,3156.4,0.00363052]
[1768318574051,0.00388839,3158.2,3156.4,0.12775268]
[1768318574238,0.13479446,3159.2,3156.9,0.12023377]
[1768318574540,3.869,3160.2,3156.4,0.00363052]
[1768318574541,0.13479446,3159.7,3158.3,0.15845]
[1768318575248,0.13479446,3159.7,3157.3,1.77801592]
[1768318575249,0.13479446,3158.4,3156.4,0.00363052]
[1768318575540,0.13479446,3158.4,3156.4,0.14300093]
[1768318576346,0.13479446,3158.4,3156.5,0.29441276]
[1768318576546,0.14111067,3158.9,3156.8,0.15852]
[1768318576847,0.14111067,3158.7,3156.8,0.15852]
[1768318578040,0.14111067,3158.7,3156.9,0.29439276]
[1768318578242,0.14111067,3159.2,3157.2,0.13587276]
[1768318578446,0.14111067,3159.5,3157.2,0.13587276]
[1768318579353,0.14111067,3159.5,3157.7,0.13587276]
[1768318579857,0.00244971,3159.7,3157.8,0.13587276]
[1768318581947,0.00244971,3159.7,3157.9,0.13587276]
[1768318582154,0.00244971,3159.7,3157.9,0.29434276]
[1768318584346,3.181,3161.1,3157.4,3.17]
[1768318584347,0.96615324,3161.2,3158.9,0.15842]
[1768318584545,1.10726391,3161.2,3159.0,0.13587276]
[1768318584754,0.94895391,3161.2,3159.1,0.15841]
[1768318584948,0.94895391,3161.2,3159.1,0.13587276]
[1768318585456,0.91581646,3160.7,3159.9,0.15837]
[1768318585850,0.14111067,3160.6,3159.3,0.1584]
[1768318586046,0.14111067,3160.6,3159.1,0.00347694]
[1768318587552,0.91581646,3160.7,3159.1,0.00347694]
[1768318587852,0.91581646,3160.7,3159.6,0.15839]
[1768318588348,0.91581646,3160.7,3159.7,3.169]
[1768318588550,1.05692713,3160.7,3159.6,0.15839]
[1768318588753,0.14111067,3160.6,3159.3,3.169]
[1768318588953,0.91581646,3160.7,3159.3,3.169]
[1768318589460,0.91581646,3160.7,3159.1,0.00347694]
[1768318589652,1.05692713,3160.7,3159.1,0.00347694]
[1768318589952,0.91581646,3160.7,3159.4,0.15839]
[1768318590158,0.14111067,3160.6,3159.4,0.15839]
[1768318591457,0.91581646,3160.7,3159.4,0.15839]
[1768318592160,0.91581646,3160.7,3159.5,3.168]
[1768318593059,0.91581646,3160.7,3159.4,0.15839]
[1768318593252,0.14111067,3160.6,3159.4,0.15839]
[1768318593452,0.14111067,3160.6,3159.5,3.168]
[1768318593762,0.91581646,3160.7,3159.7,0.15838]
[1768318594246,0.91581646,3160.7,3159.8,0.15837]
[1768318595357,0.91581646,3160.7,3159.5,3.168]
[1768318595755,0.91581646,3160.7,3159.5,9.168]
[1768318596648,0.14111067,3161.2,3160.2,0.15835]
[1768318596850,0.14663838,3161.7,3160.4,0.15834]
[1768318597049,0.14663838,3161.7,3160.5,0.15834]
[1768318597255,2.81505205,3164.2,3139.7,2.43307405]
[1768318597256,0.15821,3163.1,3160.6,1.267]
[1768318597455,1.56416651,3163.3,3160.7,1.56416651]
[1768318597662,0.14663838,3163.2,3161.1,1.56416651]
[1768318597861,0.14663838,3163.2,3161.4,0.15829]
[1768318598165,0.14663838,3163.2,3161.4,0.16108459]
[1768318599250,0.14663838,3163.2,3161.4,0.00279459]
[1768318599460,0.14663838,3163.2,3161.6,0.15828]
[1768318599660,0.14663838,3163.2,3161.5,1.56416651]
[1768318599865,0.00338797,3163.3,3162.3,0.15825]
[1768318600045,0.15002635,3163.3,3162.3,0.15825]
[1768318600657,0.15002635,3163.3,3161.8,1.267]
[1768318600956,0.15002635,3163.3,3161.9,0.15827]
[1768318601351,0.15002635,3163.3,3162.0,0.15826]
[1768318601555,0.15002635,3163.3,3162.1,3.166]
[1768318601864,0.05503912,3165.2,3162.1,3.166]
[1768318601865,0.14663838,3164.3,3162.7,1.56416651]
[1768318602069,0.14663838,3164.3,3163.2,0.1582]
[1768318602860,0.14913723,3164.3,3163.2,0.1582]
[1768318603056,0.00249885,3164.3,3162.8,4.73016651]
[1768318603266,0.00249885,3164.3,3163.6,0.15818]
[1768318603461,0.14663838,3165.6,3163.8,0.15817]
[1768318603663,0.14663838,3165.6,3163.9,0.15817]
[1768318603859,0.14663838,3165.6,3163.4,1.56416651]
[1768318604060,0.14663838,3165.6,3164.2,0.15815]
[1768318604658,0.14663838,3165.6,3164.3,3.166]
[1768318604855,0.14663838,3165.6,3164.2,0.15815]
[1768318605062,0.1490055,3165.6,3164.2,0.00271584]
[1768318605360,0.00236712,3165.6,3164.2,4.73188235]
[1768318605553,0.00236712,3165.6,3164.2,1.56688235]
[1768318605758,0.00236712,3165.6,3164.3,4.431]
[1768318605964,0.00236712,3165.6,3164.3,6.0]
[1768318606154,0.00236712,3165.6,3164.2,0.00271584]
[1768318606354,0.00236712,3165.6,3164.3,3.212]
[1768318606553,0.00236712,3165.6,3164.3,0.15815]
[1768318606760,0.1490055,3165.6,3164.3,3.32315]
[1768318607369,0.1490055,3165.6,3164.3,0.15815]
[1768318607561,0.1490055,3165.6,3164.4,3.677]
[1768318607764,0.1490055,3165.6,3164.5,3.165]
[1768318607960,0.1490055,3165.6,3164.3,0.15815]
[1768318608161,0.1490055,3165.6,3164.2,0.00271584]
[1768318608361,0.1490055,3165.6,3164.3,3.165]
[1768318609264,0.1490055,3165.6,3164.4,4.43]
[1768318609760,0.1490055,3165.6,3164.2,0.16086584]
[1768318609961,0.14663838,3166.3,3164.3,3.676]
[1768318610170,0.14663838,3166.3,3165.0,1.56416651]
[1768318610355,0.14663838,3166.3,3165.2,0.1581]
[1768318610965,0.00290502,3166.3,3165.0,1.56416651]
[1768318611760,0.00290502,3166.3,3165.5,0.15809]
[1768318615272,0.00290502,3166.3,3165.7,0.15808]
[1768318615861,0.00290502,3166.3,3165.7,1.42308]
[1768318616065,0.14663838,3166.8,3165.7,2.98724651]
[1768318616267,0.14663838,3166.8,3165.8,0.15807]
[1768318616468,0.1579,3169.4,3166.7,1.56416651]
[1768318616666,0.15786,3170.1,3167.9,1.56416651]
[1768318616873,0.25570604,3170.5,3167.3,0.158]
[1768318617166,0.15788,3169.7,3167.6,0.15798]
[1768318617567,0.15788,3169.7,3167.3,0.00237934]
[1768318617768,0.15788,3169.7,3167.5,0.15799]
[1768318617965,1.56416651,3169.6,3167.5,0.15799]
[1768318618165,0.15788,3169.7,3167.6,0.15799]
[1768318618470,0.14663838,3169.3,3167.3,0.00237934]
[1768318618671,0.30455838,3168.9,3167.3,0.00237934]
[1768318618970,0.14663838,3168.1,3166.5,0.15804]
[1768318619172,0.14663838,3168.1,3166.6,0.15803]
[1768318619367,0.14663838,3168.7,3166.8,1.56416651]
[1768318619568,0.14663838,3168.7,3167.2,1.56416651]
[1768318619964,0.1579,3169.4,3167.2,1.72216651]
[1768318620277,0.14663838,3169.3,3167.3,0.158]
[1768318620475,0.14663838,3169.3,3167.6,1.56416651]
[1768318620772,0.00314106,3169.4,3168.3,0.15795]
[1768318621276,0.00314106,3169.4,3168.4,1.56416651]
[1768318621573,1.15788062,3171.0,3168.4,0.13893685]
[1768318621768,1.56416651,3171.2,3168.9,0.13893685]
[1768318621976,0.14663838,3171.1,3169.0,5.99016651]
[1768318622277,0.14663838,3171.7,3168.7,0.13893685]
[1768318622476,1.56416651,3170.7,3169.2,0.1579]
[1768318622689,0.14663838,3170.6,3168.5,1.265]
[1768318622976,0.14663838,3171.6,3169.1,0.15791]
[1768318623168,0.14663838,3171.3,3169.0,1.56416651]
[1768318623368,0.14663838,3171.3,3169.1,0.13893685]
[1768318623573,0.0030364,3171.7,3169.9,0.15787]
[1768318623780,0.0030364,3171.7,3169.9,0.16140221]
[1768318624074,0.0030364,3171.7,3170.0,1.70310336]
[1768318624273,0.0030364,3171.7,3170.1,4.424]
[1768318625368,0.0030364,3171.7,3170.1,5.98816651]
[1768318625569,0.0030364,3171.7,3170.4,0.15784]
[1768318626079,0.13740446,3171.5,3169.9,0.00353221]
[1768318626486,1.56416651,3170.0,3167.6,0.14466302]
[1768318626778,0.13740446,3169.9,3167.4,0.15799]
[1768318626972,0.13740446,3169.9,3167.1,4.423]
[1768318627275,0.13740446,3170.5,3168.6,0.15794]
[1768318627472,0.0030364,3171.7,3170.0,0.15786]
[1768318627774,1.56416651,3171.1,3169.4,0.15789]
[1768318627965,1.56416651,3170.7,3168.6,0.00224943]
[1768318628174,1.56416651,3170.8,3168.6,0.00224943]
[1768318628369,1.56416651,3170.9,3168.6,0.00224943]
[1768318628668,1.56416651,3171.3,3168.6,1.71107896]
[1768318628875,1.56416651,3171.1,3169.5,0.15789]
[1768318629072,1.56416651,3170.7,3169.5,0.15789]
[1768318629378,1.70157097,3170.7,3169.5,0.15789]
[1768318629577,1.56416651,3170.3,3168.6,0.16017943]
[1768318629876,0.13740446,3170.2,3169.1,0.15791]
[1768318630076,0.13740446,3170.9,3169.2,0.1579]
[1768318630470,0.13740446,3170.5,3169.2,0.1579]
[1768318630873,1.56416651,3170.2,3168.6,0.16017943]
[1768318631070,0.13740446,3170.5,3168.9,1.56416651]
[1768318631272,0.13740446,3171.3,3168.9,1.56416651]
[1768318631473,0.13740446,3171.3,3169.5,0.15789]
[1768318631674,0.13740446,3171.1,3168.6,0.00224943]
[1768318632178,0.13740446,3171.1,3169.4,0.15789]
[1768318632481,1.56416651,3170.5,3169.4,0.15789]
[1768318632678,0.13740446,3170.6,3169.4,0.15789]
[1768318632974,0.13740446,3170.6,3168.6,0.16017943]
[1768318633178,0.13740446,3170.2,3168.7,0.15793]
[1768318633380,0.13740446,3170.2,3168.6,0.00224943]
[1768318633782,1.70157097,3170.8,3169.1,0.15791]
[1768318633977,0.13740446,3170.7,3169.1,0.15791]
[1768318634480,0.13740446,3170.7,3169.4,0.1579]
[1768318636387,1.56416651,3170.5,3169.4,0.1579]
[1768318636691,1.56416651,3170.1,3168.8,0.15793]
[1768318636884,1.69989579,3170.5,3168.9,0.15792]
[1768318637483,1.69989579,3170.5,3169.3,0.1579]
[1768318638679,40.8,3171.6,3168.9,0.13244586]
[1768318638973,0.13572928,3171.6,3170.1,0.15786]
[1768318639586,1.69989579,3171.5,3170.1,0.15786]
[1768318639785,0.13572928,3171.4,3169.4,0.15789]
[1768318639976,0.0030364,3171.7,3168.7,0.13244586]
[1768318639977,1.69989579,3171.1,3169.5,0.15789]
[1768318640380,0.13572928,3171.0,3169.5,0.15789]
[1768318640689,0.13572928,3170.6,3168.9,0.15792]
[1768318641388,6.0,3170.6,3168.9,0.15792]
[1768318641591,0.13572928,3170.2,3168.9,0.15792]
[1768318641891,0.13572928,3169.9,3168.3,0.15795]
[1768318642395,0.13572928,3169.5,3167.8,0.15797]
[1768318642577,0.13572928,3169.5,3167.1,3.158]
[1768318642578,0.13572928,3169.1,3166.8,0.13244586]
[1768318642782,0.13572928,3168.7,3167.2,0.158]
[1768318642980,0.13572928,3168.7,3165.8,3.78692725]
[1768318642981,1.69989579,3168.0,3166.4,0.15804]
[1768318643183,1.69989579,3168.0,3165.8,3.78692725]
[1768318643184,0.1387816,3168.0,3167.0,1.00243835]
[1768318643687,0.1387816,3168.0,3167.0,0.70835201]
[1768318643688,0.00305232,3168.0,3167.0,0.70835201]
[1768318643892,0.00305232,3168.0,3166.1,0.13244586]
[1768318644188,0.00305232,3168.0,3166.1,0.29050586]
[1768318644389,0.15797,3167.9,3165.5,0.13244586]
[1768318644791,1.56416651,3167.6,3165.5,0.1364256]
[1768318644991,1.56416651,3167.7,3165.6,0.13244586]
[1768318645192,1.437,3167.8,3165.7,0.13244586]
[1768318645383,1.437,3167.8,3165.9,0.13244586]
[1768318645783,1.56416651,3167.5,3165.9,0.13244586]
[1768318645991,1.56416651,3167.1,3165.8,0.15807]
[1768318646188,1.56416651,3167.1,3165.5,0.1364256]
[1768318646393,1.437,3167.6,3165.8,0.15807]
[1768318646585,1.56416651,3167.4,3165.8,0.15807]
[1768318646784,1.56416651,3167.3,3165.6,0.13244586]
[1768318647284,1.56416651,3166.9,3165.6,0.13244586]
[1768318647891,7.437,3167.4,3165.5,0.00397974]
[1768318647892,1.56416651,3167.2,3165.5,0.00397974]
[1768318648292,6.0,3167.1,3165.5,0.00397974]
[1768318648484,1.437,3167.1,3165.5,0.00397974]
[1768318648685,1.56416651,3167.3,3165.5,0.00397974]
[1768318649287,1.56416651,3166.9,3165.5,0.00397974]
[1768318650698,1.56416651,3166.9,3165.0,0.13244586]
[1768318650699,1.56416651,3166.5,3165.0,0.13244586]
[1768318650999,6.0,3166.9,3165.0,0.13244586]
[1768318651000,1.437,3166.6,3165.0,0.13244586]
[1768318651199,3.00116651,3166.6,3165.0,0.13244586]
[1768318651401,1.56416651,3166.8,3165.0,0.13244586]
[1768318651590,1.56416651,3166.8,3165.0,0.00391887]
[1768318651787,1.56416651,3166.4,3165.0,0.00391887]
[1768318652289,1.56416651,3166.0,3165.0,0.00391887]
[1768318652685,40.8,3166.3,3164.4,0.13244586]
[1768318652889,1.56416651,3165.7,3164.4,0.13244586]
[1768318653090,1.56416651,3165.8,3164.4,0.13244586]
[1768318653499,1.56416651,3165.8,3163.8,0.13244586]
[1768318653700,3.00654874,3165.8,3163.8,0.13640333]
[1768318653895,1.56654874,3165.8,3163.8,0.13640333]
[1768318654290,1.56654874,3165.8,3163.9,0.13244586]
[1768318654693,0.00238223,3165.8,3164.0,0.14342753]
[1768318654894,0.00238223,3165.8,3164.2,0.14342753]
[1768318657300,1.44138223,3165.8,3164.2,0.14342753]
[1768318658202,0.00238223,3165.8,3164.2,0.14342753]
[1768318661809,0.00238223,3165.8,3164.5,0.14342753]
[1768318664707,0.00238223,3165.8,3164.5,0.30156753]
[1768318664912,0.00238223,3165.8,3165.0,0.14342753]
[1768318665610,3.161,3167.2,3165.2,0.14342753]
[1768318665810,1.439,3167.1,3165.2,0.14342753]
[1768318666014,40.8,3167.2,3165.3,0.14342753]
[1768318666219,42.239,3167.2,3165.3,0.14342753]
[1768318666618,0.00384622,3167.2,3165.6,0.30150753]
[1768318666809,0.00384622,3167.2,3165.7,0.14342753]
[1768318667929,0.00384622,3167.2,3166.3,0.14342753]
[1768318668221,0.00384622,3167.2,3166.3,0.14679002]
[1768318673619,40.8,3168.4,3166.3,0.14679002]
[1768318674625,40.80369759,3168.4,3166.3,0.14679002]
[1768318675425,42.24669759,3168.4,3166.3,0.14679002]
[1768318676024,44.0142887,3168.4,3166.3,0.14679002]
[1768318676326,42.24669759,3168.4,3166.3,0.14679002]
[1768318677918,0.00369759,3168.4,3166.6,0.30145753]
[1768318678123,0.00369759,3168.4,3166.7,0.14342753]
[1768318679627,1.7712887,3168.4,3166.7,0.14342753]
[1768318679826,0.15797,3168.0,3166.7,0.14342753]
[1768318680020,1.454,3167.9,3166.7,0.14342753]
[1768318680417,1.454,3167.9,3166.3,0.00336249]
[1768318680621,3.22159111,3167.9,3166.3,0.00336249]
[1768318681021,0.15799,3167.6,3166.3,0.00336249]
[1768318681226,0.158,3167.3,3165.6,0.14342753]
[1768318681421,0.158,3167.3,3165.2,0.14342753]
[1768318681621,1.455,3167.4,3165.6,0.14342753]
[1768318682023,0.15798,3167.7,3165.6,0.14342753]
[1768318682231,1.455,3167.6,3165.6,0.14590272]
[1768318683131,1.61299,3167.6,3165.6,0.14590272]
[1768318683933,1.76759111,3167.3,3165.6,0.14590272]
[1768318684122,1.76759111,3167.3,3165.6,0.00247519]
[1768318684123,4.94859111,3167.3,3165.6,0.00247519]
[1768318684323,6.0,3167.2,3165.6,0.00247519]
[1768318684624,0.15804,3166.5,3164.6,0.14342753]
[1768318685032,1.457,3166.4,3164.7,0.13602166]
[1768318685931,1.457,3166.4,3164.7,0.13874522]
[1768318686229,1.457,3166.3,3164.7,0.13874522]
[1768318686623,3.161,3167.1,3164.9,0.13602166]
[1768318686824,1.456,3167.0,3164.9,0.13602166]